bitfinex/quotes_ETHUSD_20250824
["timestamp","ask_amount","ask_price","bid_price","bid_amount"]
[1756065779129,1.609,4780.7,4779.1,0.04]
[1756065779556,0.458,4780.6,4779.1,0.04]
[1756065779773,4.842,4780.5,4779.1,0.04]
[1756065780075,0.458,4780.4,4779.1,0.04]
[1756065780613,0.1048,4779.2,4779.1,0.04]
[1756065781773,0.32730213,4783.2,4779.2,3.0]
[1756065781908,0.32730213,4783.2,4779.1,9.678]
[1756065781909,0.458,4783.1,4779.3,5.03134363]
[1756065782245,0.32730213,4783.2,4779.2,7.839]
[1756065782562,1.609,4783.6,4779.5,3.0]
[1756065782734,1.609,4783.6,4779.1,6.678]
[1756065782735,0.458,4783.5,4779.1,6.678]
[1756065782942,0.458,4783.5,4779.9,3.0]
[1756065783242,1.609,4783.6,4782.0,2.09117089]
[1756065783456,1.609,4783.6,4782.1,3.41823996]
[1756065783616,0.458,4783.8,4782.1,3.41823996]
[1756065784072,0.458,4783.8,4782.1,0.41823996]
[1756065784210,0.458,4783.8,4782.0,2.09116683]
[1756065784416,0.04,4784.4,4782.0,5.09116683]
[1756065784641,1e-08,4782.7,4782.1,2.09113151]
[1756065784842,1e-08,4782.7,4782.4,2.09100033]
[1756065785141,1e-08,4782.7,4782.6,2.09091289]
[1756065785344,1e-08,4782.7,4782.6,5.80910421]
[1756065785557,1e-08,4782.7,4782.6,5.09091289]
[1756065786333,1e-08,4782.7,4782.6,2.09091289]
[1756065786660,1e-08,4782.7,4780.9,2.09161529]
[1756065786661,1e-08,4782.7,4780.8,1.609]
[1756065786888,1e-08,4782.7,4782.5,2.09092457]
[1756065787028,1e-08,4782.7,4782.6,0.20909246]
[1756065787229,1e-08,4784.4,4782.6,0.20909246]
[1756065787472,0.04,4786.4,4782.9,0.5]
[1756065787758,0.04,4786.4,4786.3,2.08929653]
[1756065788061,0.04,4786.4,4785.4,2.08967861]
[1756065788288,0.04,4786.4,4785.5,0.20896786]
[1756065788780,0.04,4786.4,4786.2,2.08933316]
[1756065788982,0.04,4786.4,4786.2,5.08933316]
[1756065789182,2.066,4789.5,4786.3,1.608]
[1756065789377,0.04,4790.4,4786.5,3.0]
[1756065789582,0.04,4790.4,4786.7,19.71043474]
[1756065789755,0.04,4790.4,4787.1,0.5]
[1756065789961,0.04,4790.4,4786.8,18.17324463]
[1756065789962,0.04,4790.4,4790.2,2.0875955]
[1756065790282,0.04,4790.4,4789.0,1.607]
[1756065790466,0.04,4790.4,4790.1,2.08762266]
[1756065790676,0.04,4790.4,4788.9,1.607]
[1756065791064,0.04,4790.4,4789.0,3.0]
[1756065791388,0.458,4790.2,4787.6,1.607]
[1756065791684,0.1048,4788.8,4788.7,2.08824942]
[1756065791896,0.104,4790.0,4789.3,0.104]
[1756065792087,0.1048,4788.9,4788.3,0.1048]
[1756065792276,0.1048,4788.6,4787.1,0.04]
[1756065792455,5.025,4790.3,4787.1,0.04]
[1756065792456,2.065,4788.5,4787.1,0.04]
[1756065792656,1.8135,4788.4,4787.1,0.04]
[1756065792864,2.0755,4788.4,4787.1,0.04]
[1756065793066,0.1048,4787.2,4787.1,0.04]
[1756065793258,2.0755,4789.5,4787.1,0.04]
[1756065793477,0.1048,4788.0,4787.3,2.0888601]
[1756065793694,0.1048,4788.0,4786.7,1.607]
[1756065793695,2.0755,4787.9,4784.2,1.607]
[1756065793882,1.81455,4787.8,4785.7,2.08954558]
[1756065794192,1.81455,4787.8,4784.2,1.607]
[1756065794193,2.28305,4787.8,4784.8,2.0899477]
[1756065794420,2.28305,4787.8,4784.2,1.607]
[1756065794421,0.4685,4787.7,4784.2,1.607]
[1756065794557,0.4685,4787.7,4785.2,2.08975682]
[1756065794756,0.4685,4787.7,4784.5,2.09006381]
[1756065795063,0.4685,4787.7,4784.1,0.04]
[1756065795463,2.5572098,4787.7,4784.2,2.09020718]
[1756065795781,1.81455,4787.8,4784.1,0.04]
[1756065795782,0.4685,4787.6,4784.1,0.04]
[1756065795981,0.228305,4787.5,4784.1,0.04]
[1756065796184,0.4685,4787.4,4784.1,2.13022248]
[1756065796489,3.0,4787.2,4784.1,0.04]
[1756065796799,2.08936509,4786.2,4782.1,0.04]
[1756065796999,3.0,4786.0,4782.1,0.04]
[1756065797157,3.0,4785.3,4782.1,0.04]
[1756065797359,2.08996336,4784.8,4782.1,0.04]
[1756065797660,31.607,4785.2,4782.1,0.04]
[1756065797661,30.0,4784.7,4782.1,0.04]
[1756065797864,0.4685,4784.7,4782.1,0.04]
[1756065798089,30.0,4784.6,4782.1,0.04]
[1756065798401,2.49984363,4784.5,4782.1,0.04]
[1756065798563,3.0,4784.3,4782.1,0.04]
[1756065798764,30.0,4784.2,4782.1,0.04]
[1756065799059,11.445,4784.1,4782.1,0.04]
[1756065799266,11.9135,4784.1,4782.1,0.04]
[1756065799605,6.16982873,4784.0,4782.1,0.04]
[1756065799786,5.2855,4784.0,4782.1,0.04]
[1756065799987,1.607,4784.1,4782.2,2.09108778]
[1756065800293,1.607,4784.1,4783.9,2.09034205]
[1756065800500,0.4685,4784.9,4783.9,2.09034205]
[1756065800811,0.67605,4784.9,4781.4,3.0]
[1756065801101,0.67605,4784.9,4775.9,0.003]
[1756065801102,0.4685,4784.8,4781.6,3.0]
[1756065801305,0.04,4785.4,4782.3,2.09104405]
[1756065801484,0.04,4785.4,4783.1,2.09066254]
[1756065801675,0.04,4785.4,4785.2,2.08976745]
[1756065801875,0.04,4785.4,4785.3,3.0]
[1756065802119,0.04,4785.4,4785.2,2.50772558]
[1756065802120,0.04,4785.4,4785.2,2.08976557]
[1756065802262,0.04,4785.4,4781.9,2.09118165]
[1756065802467,0.04,4785.4,4783.5,1.607]
[1756065802978,0.04,4785.4,4785.2,2.0897725]
[1756065803498,0.04,4785.4,4785.3,3.0]
[1756065804208,0.04,4785.4,4785.2,2.08974128]
[1756065804394,0.04,4785.4,4785.2,5.08974128]
[1756065804892,1e-08,4785.4,4785.3,0.2006]
[1756065805201,1e-08,4785.6,4785.4,2.08968947]
[1756065805391,1e-08,4785.6,4785.5,3.95746436]
[1756065805768,1e-08,4785.6,4782.6,2.09088469]
[1756065805769,1e-08,4785.6,4784.2,4.811]
[1756065805964,1e-08,4785.6,4783.5,1.607]
[1756065805965,0.4685,4785.5,4783.5,1.607]
[1756065806168,0.4685,4785.5,4784.7,2.08997172]
[1756065806416,2.0755,4785.5,4782.6,2.09091289]
[1756065806713,2.0755,4785.5,4783.9,2.09033745]
[1756065806714,0.4685,4785.4,4783.9,2.09033745]
[1756065807013,0.20755,4785.3,4782.5,1.607]
[1756065807310,0.4685,4785.2,4782.5,1.607]
[1756065807470,0.4685,4785.2,4783.1,0.04]
[1756065808493,0.4685,4785.2,4783.1,0.044]
[1756065808700,32.08983395,4785.1,4783.1,0.044]
[1756065808903,2.193,4784.9,4780.7,2.09172722]
[1756065809199,2.193,4784.7,4780.6,1.607]
[1756065809462,38.66970792,4784.8,4782.0,2.09114692]
[1756065809463,4.98620792,4784.6,4782.0,2.09114692]
[1756065809573,0.17820792,4784.5,4781.8,2.09126158]
[1756065809766,0.64670792,4784.4,4781.7,2.09126684]
[1756065809972,2.79917871,4784.3,4780.6,1.607]
[1756065810281,0.17820792,4784.2,4781.8,2.09124988]
[1756065810485,0.64670792,4784.1,4781.6,2.09131779]
[1756065810792,0.64670792,4784.0,4781.1,0.044]
[1756065810966,0.64670792,4783.9,4781.5,2.09136779]
[1756065811173,1.19197871,4783.8,4781.9,2.09121335]
[1756065811507,0.17820792,4783.7,4781.5,2.09138049]
[1756065811697,0.17820792,4783.6,4782.0,2.09114659]
[1756065812008,0.17820792,4783.5,4782.6,2.09090672]
[1756065812213,0.17820792,4783.4,4781.7,3.69829111]
[1756065812381,0.17820792,4783.3,4781.8,3.0]
[1756065812581,0.17820792,4783.2,4782.1,0.71382911]
[1756065812782,0.17820792,4783.1,4782.2,2.09108778]
[1756065813113,0.17820792,4783.0,4782.9,2.09078174]
[1756065813311,0.17866925,4784.2,4782.5,2.09095661]
[1756065813486,0.17866925,4784.1,4782.2,3.0]
[1756065813671,0.17866925,4784.0,4783.8,2.09037253]
[1756065814015,0.17866925,4783.9,4783.8,2.09037253]
[1756065814581,0.5085,4785.4,4783.9,2.09034469]
[1756065814582,0.17882197,4785.3,4783.9,2.09034469]
[1756065814776,0.17882197,4785.2,4783.2,3.0]
[1756065814970,0.04,4785.4,4785.0,2.08986415]
[1756065814971,0.17882197,4785.1,4785.0,2.08986415]
[1756065815284,0.17882197,4785.1,4785.0,0.71798038]
[1756065815488,0.64732197,4785.1,4784.2,2.09018921]
[1756065815805,0.1048,4784.7,4784.4,2.09012624]
[1756065815975,0.1048,4784.7,4784.6,2.09003887]
[1756065816180,0.0296,4784.7,4784.6,2.09003887]
[1756065817094,0.04,4785.4,4785.3,2.08973314]
[1756065817295,0.1448,4785.4,4785.3,2.08973314]
[1756065818409,0.04,4785.4,4785.3,2.08973314]
[1756065818712,0.04,4786.4,4785.3,2.08973314]
[1756065818713,0.1048,4786.2,4785.5,2.0896458]
[1756065818872,0.04,4786.4,4785.5,11.6004458]
[1756065819073,1e-08,4786.4,4786.3,2.08929653]
[1756065819296,0.001,4787.7,4787.3,2.0888601]
[1756065819503,0.001,4787.7,4787.3,1.607]
[1756065819720,0.001,4787.7,4786.5,0.1048]
[1756065819721,0.6133,4787.4,4786.5,0.1048]
[1756065819879,0.5085,4787.4,4786.6,2.08915009]
[1756065820079,0.5085,4787.4,4786.3,3.0]
[1756065820080,0.1048,4786.6,4786.3,2.08925592]
[1756065820323,0.1048,4786.6,4786.2,1.607]
[1756065820501,0.04,4787.4,4787.2,2.08888036]
[1756065820699,0.04,4787.4,4785.2,1.607]
[1756065820700,0.5733,4787.3,4786.4,1.607]
[1756065820904,0.1048,4786.3,4785.9,6.403]
[1756065821120,0.4685,4786.2,4785.1,3.0]
[1756065821319,0.1048,4785.6,4785.1,3.0]
[1756065821619,0.4685,4785.5,4785.0,1.607]
[1756065821828,0.4685,4786.4,4785.0,1.607]
[1756065821978,0.1048,4785.6,4785.5,2.0896458]
[1756065822398,0.1048,4785.6,4785.5,6.8836458]
[1756065822621,0.1048,4785.6,4785.5,9.8836458]
[1756065822789,0.1048,4785.6,4785.5,11.08098642]
[1756065822978,0.04,4787.4,4786.1,2.08936012]
[1756065823178,0.04,4787.4,4786.2,1.607]
[1756065823380,0.1048,4787.0,4786.9,2.08903465]
[1756065823579,0.1048,4787.0,4786.9,9.88203465]
[1756065823824,0.04,4787.4,4787.3,2.0888601]
[1756065824030,0.04,4787.4,4787.3,6.6958601]
[1756065824529,0.1448,4787.4,4786.8,4.791]
[1756065824693,0.1448,4787.4,4786.2,9.398]
[1756065824694,0.4512,4787.3,4786.2,9.398]
[1756065825017,0.1048,4786.3,4786.2,3.69632162]
[1756065825416,0.1048,4786.3,4786.2,5.05399839]
[1756065825597,0.1048,4786.4,4786.2,1.607]
[1756065825788,0.1048,4786.4,4786.3,2.08929653]
[1756065826196,0.1048,4786.4,4786.2,1.607]
[1756065826197,0.1048,4786.6,4786.2,1.607]
[1756065826383,0.1048,4786.3,4785.3,1.606]
[1756065826612,0.041,4787.4,4785.5,3.0]
[1756065826791,0.041,4787.4,4785.4,5.0326]
[1756065826792,0.041,4787.4,4787.1,2.0889359]
[1756065826987,0.041,4787.4,4787.3,5.0888601]
[1756065827687,0.041,4787.4,4785.3,3.0]
[1756065827882,0.4512,4787.3,4785.3,3.0]
[1756065828100,0.4512,4787.3,4785.9,2.08943316]
[1756065828298,0.041,4787.4,4785.8,3.0]
[1756065828495,0.041,4787.4,4785.9,2.08947115]
[1756065828725,0.041,4787.4,4787.1,2.0889355]
[1756065828913,0.041,4787.4,4787.3,2.0888601]
[1756065830601,0.041,4787.4,4787.3,5.50663963]
[1756065831186,0.041,4787.4,4787.3,5.0888601]
[1756065831602,1e-08,4787.7,4787.3,3.0]
[1756065831785,0.041,4788.4,4788.3,2.08842386]
[1756065831983,0.4522,4790.3,4788.3,11.47542386]
[1756065832222,0.4522,4790.3,4788.6,2.08829302]
[1756065832428,1e-08,4788.7,4788.6,6.46911908]
[1756065832993,1e-08,4788.7,4788.6,6.71371908]
[1756065833692,1e-08,4788.7,4788.6,6.46911908]
[1756065834229,1e-08,4788.7,4788.6,9.86629302]
[1756065834400,1e-08,4788.7,4788.6,2.08829302]
[1756065834590,0.45120001,4788.7,4786.2,1.606]
[1756065834789,0.4512,4788.6,4786.4,2.08925288]
[1756065834992,0.4512,4788.6,4786.3,6.384]
[1756065835422,0.4512,4788.6,4787.1,2.08893665]
[1756065835625,0.4512,4788.6,4786.9,2.08899715]
[1756065835832,0.4512,4788.6,4786.9,4.776]
[1756065836327,0.4512,4788.6,4788.2,2.0884622]
[1756065836532,0.4512,4788.5,4786.4,2.08925288]
[1756065836697,0.4512,4788.5,4786.5,5.23265894]
[1756065836893,0.4512,4788.5,4786.7,2.08909082]
[1756065837094,2.0572,4788.5,4786.7,4.774]
[1756065837407,2.0572,4788.5,4787.5,2.08875171]
[1756065837602,2.0572,4788.5,4786.8,3.0]
[1756065837927,0.4512,4788.4,4786.8,4.773]
[1756065838100,0.4512,4788.4,4786.5,4.773]
[1756065838302,0.4512,4788.4,4787.0,2.08895969]
[1756065838507,0.4512,4788.4,4787.0,2.08898621]
[1756065838702,0.4512,4788.4,4787.0,2.0889849]
[1756065838909,0.20572,4788.3,4786.4,3.0]
[1756065839112,0.4512,4788.4,4787.4,2.08880036]
[1756065839422,1.606,4788.5,4786.9,2.08900614]
[1756065839423,0.4512,4788.2,4786.9,2.08900614]
[1756065839627,0.4512,4788.2,4786.6,2.08914711]
[1756065839836,0.4512,4788.2,4787.1,2.08894342]
[1756065840032,0.4512,4788.2,4786.9,2.08899218]
[1756065840237,0.4512,4788.2,4787.6,2.08872158]
[1756065840452,1e-08,4788.7,4787.7,4.769]
[1756065840764,1e-08,4788.7,4786.1,0.04]
[1756065840765,1e-08,4788.7,4788.6,2.08829302]
[1756065841953,1e-08,4788.7,4788.6,2.33289302]
[1756065842544,1e-08,4789.4,4788.7,3.0]
[1756065842695,1e-08,4789.4,4789.3,2.0879878]
[1756065842901,5.019,4794.0,4789.3,2.0879878]
[1756065842902,1.606,4793.5,4791.3,2.08711623]
[1756065843196,0.4512,4792.9,4791.3,9.85411623]
[1756065843436,2.0572,4793.5,4791.3,9.85411623]
[1756065843632,0.4512,4793.5,4792.3,2.08668071]
[1756065845035,0.4512,4793.5,4792.3,5.08668071]
[1756065845332,0.5952,4792.4,4792.3,3.0]
[1756065845532,0.5952,4792.4,4791.1,3.0]
[1756065845830,0.104,4792.0,4791.3,2.08710265]
[1756065846036,0.04,4792.4,4791.5,3.0]
[1756065846235,0.04,4792.4,4792.2,2.08671614]
[1756065847048,0.04,4792.4,4790.5,3.0]
[1756065847336,0.4512,4792.3,4791.1,3.0]
[1756065847634,0.104,4791.7,4791.0,4.759]
[1756065847821,0.104,4791.7,4791.5,2.08701562]
[1756065848134,0.04,4792.4,4791.8,2.08687659]
[1756065848353,0.04,4792.4,4791.2,3.104]
[1756065848354,0.104,4791.6,4791.5,2.08702911]
[1756065848655,0.104,4792.1,4792.0,2.08681135]
[1756065848856,0.04,4792.4,4792.3,2.08668071]
[1756065848857,0.144,4792.4,4792.3,2.08668071]
[1756065849159,0.04,4792.4,4792.3,2.08668071]
[1756065849363,1e-08,4792.4,4792.3,5.08668071]
[1756065849563,1e-08,4792.4,4792.3,5.43528071]
[1756065849768,1e-08,4792.4,4792.3,11.06999722]
[1756065849977,1e-08,4792.4,4792.3,10.96599722]
[1756065850137,1e-08,4792.4,4792.3,11.06799722]
[1756065851597,1e-08,4793.4,4793.3,2.08624538]
[1756065851801,0.04,4795.4,4794.3,2.08581023]
[1756065851955,0.104,4795.3,4794.3,10.25497993]
[1756065852704,0.104,4795.3,4794.3,9.83781023]
[1756065852861,0.04,4795.4,4794.3,9.83781023]
[1756065853050,0.04,4795.4,4794.3,9.93881023]
[1756065853254,1e-08,4794.4,4794.3,5.18981023]
[1756065853601,1e-08,4794.4,4794.3,10.18341023]
[1756065853803,1e-08,4794.4,4794.3,9.93881023]
[1756065854087,1e-08,4794.4,4794.3,11.14127993]
[1756065854680,1e-08,4794.4,4794.3,9.93681023]
[1756065854867,1e-08,4794.4,4794.3,9.83281023]
[1756065855496,1e-08,4794.4,4794.3,5.08581023]
[1756065855802,1e-08,4794.4,4794.3,10.07641023]
[1756065856657,1e-08,4794.4,4794.3,5.08581023]
[1756065856870,1e-08,4794.4,4794.3,10.70647993]
[1756065857092,1e-08,4794.4,4794.3,10.95107993]
[1756065857260,1e-08,4794.4,4794.3,10.70647993]
[1756065857466,1e-08,4794.4,4794.3,5.96347993]
[1756065857690,1e-08,4794.4,4794.3,9.82881023]
[1756065857891,1e-08,4794.4,4794.3,5.08581023]
[1756065858073,1e-08,4794.4,4794.3,9.82681023]
[1756065858457,0.00100001,4794.4,4794.3,2.08581023]
[1756065858658,0.44070001,4794.4,4794.3,6.82581023]
[1756065858965,0.44070001,4794.4,4793.9,4.74]
[1756065859182,0.4397,4794.3,4793.9,4.74]
[1756065859378,0.4397,4794.2,4793.0,1.604]
[1756065859695,0.4397,4794.2,4793.2,2.08627499]
[1756065859854,0.4397,4794.2,4793.0,4.737]
[1756065860057,0.4397,4794.2,4793.1,3.0]
[1756065860261,0.4397,4794.2,4793.0,4.737]
[1756065860554,0.4397,4794.2,4793.1,4.736]
[1756065860780,0.4397,4794.2,4792.1,1.604]
[1756065860990,0.4397,4794.2,4791.1,2.12720084]
[1756065861193,0.4397,4794.2,4791.7,2.086942]
[1756065861497,0.4397,4794.2,4791.8,4.735]
[1756065861701,0.4397,4794.2,4792.1,2.08673363]
[1756065862009,0.4397,4794.2,4793.0,2.08637485]
[1756065862297,0.4397,4794.2,4792.7,4.735]
[1756065862502,0.20447,4794.1,4792.2,4.734]
[1756065862700,0.20447,4794.1,4792.4,2.08663237]
[1756065863202,0.4397,4794.0,4792.3,3.0]
[1756065863910,0.4397,4794.0,4792.8,2.08646132]
[1756065864405,0.4397,4794.0,4793.1,2.0863175]
[1756065864576,0.4397,4794.0,4793.0,2.08637569]
[1756065864777,0.4397,4794.0,4792.3,3.0]
[1756065865003,0.104,4792.8,4792.7,2.08650656]
[1756065865576,0.5437,4792.8,4791.2,1.604]
[1756065865817,0.5437,4792.8,4791.4,0.104]
[1756065866008,0.4397,4792.8,4792.4,2.08659883]
[1756065866183,0.4397,4792.7,4792.3,2.08666981]
[1756065866390,0.104,4792.3,4792.1,5.08673536]
[1756065866588,0.104,4792.3,4650.0,3.060754]
[1756065866589,0.4397,4792.2,4791.9,2.08683891]
[1756065866821,0.4397,4792.1,4789.7,2.08780698]
[1756065867110,0.4397,4792.1,4790.1,0.04]
[1756065867417,1.604,4792.0,4790.1,0.04]
[1756065867575,0.64407,4791.9,4790.3,2.08752454]
[1756065867907,0.64407,4791.9,4790.1,0.04]
[1756065868115,0.4397,4791.8,4790.1,0.04]
[1756065868608,0.4397,4791.8,4790.6,2.08741527]
[1756065868808,0.4397,4791.8,4790.4,2.08747123]
[1756065869013,0.4397,4791.8,4790.1,0.04]
[1756065869712,0.4397,4791.8,4790.4,2.08747753]
[1756065869911,0.4397,4791.8,4790.6,2.08740014]
[1756065870113,0.4397,4791.8,4790.1,0.04]
[1756065870272,0.4397,4791.8,4790.5,2.08743654]
[1756065870710,0.4397,4791.8,4791.0,3.0]
[1756065871022,0.4397,4791.8,4791.3,2.0871086]
[1756065871211,0.4397,4792.2,4790.5,4.722]
[1756065871409,0.4397,4792.2,4791.7,2.08689935]
[1756065871610,0.4397,4792.1,4790.9,3.0]
[1756065872116,0.4397,4792.1,4791.6,2.08697624]
[1756065872282,0.4397,4792.1,4791.8,2.08687049]
[1756065872479,0.4397,4792.1,4790.9,2.08727799]
[1756065872480,0.4397,4792.6,4790.7,2.08733904]
[1756065872680,0.4397,4792.6,4791.2,3.0]
[1756065873014,0.4397,4792.6,4791.1,0.04]
[1756065873579,0.4397,4792.6,4790.1,0.044]
[1756065873580,30.0,4792.5,4790.1,0.044]
[1756065873736,22.09659397,4792.4,4787.0,1.604]
[1756065873884,2.0869869,4791.6,4788.1,2.12849353]
[1756065874086,3.0,4791.4,4788.1,0.04]
[1756065874286,3.0,4791.2,4788.1,0.04]
[1756065874504,0.41466067,4791.1,4788.1,0.04]
[1756065874687,0.41468849,4791.4,4788.1,0.04]
[1756065875024,0.4397,4791.0,4790.1,0.004]
[1756065876092,30.0,4790.1,4789.6,0.004]
[1756065876323,1.604,4790.0,4788.1,0.04]
[1756065876520,1.604,4789.9,4788.2,2.08846748]
[1756065876723,1.604,4789.9,4788.1,0.04]
[1756065876724,0.1048,4788.2,4788.1,0.04]
[1756065877227,0.1048,4788.3,4788.1,0.04]
[1756065877441,0.1048,4788.3,4788.2,5.08846748]
[1756065877646,0.1048,4788.3,4788.1,0.04]
[1756065877810,0.5445,4788.3,4788.1,0.04]
[1756065878004,0.1048,4788.3,4788.1,0.04]
[1756065878230,0.4397,4788.2,4788.1,0.04]
[1756065879112,0.1048,4788.3,4788.1,0.04]
[1756065879312,0.4397,4789.7,4788.1,0.55285504]
[1756065879503,1.604,4789.9,4788.5,2.08831038]
[1756065879703,2.07134363,4792.4,4788.2,1.605]
[1756065879704,0.04,4792.4,4788.2,1.605]
[1756065879911,0.4397,4791.2,4788.7,2.08824942]
[1756065880107,0.4397,4791.2,4788.2,4.605]
[1756065880108,0.4397,4791.2,4789.1,2.088075]
[1756065880339,1.605,4791.8,4789.3,3.0]
[1756065880615,0.04,4792.4,4789.3,3.0]
[1756065880616,0.04,4792.4,4791.3,2.08711623]
[1756065880811,0.04,4792.4,4790.4,3.0]
[1756065881010,0.4397,4791.3,4789.9,3.0]
[1756065881240,0.4397,4791.3,4790.1,3.0]
[1756065881444,0.04,4792.4,4791.3,2.08711623]
[1756065881823,0.04,4792.4,4790.9,3.0]
[1756065882145,0.04,4792.4,4789.8,6.79675831]
[1756065882146,0.4397,4791.3,4789.6,2.08783485]
[1756065882338,0.4397,4791.3,4788.9,2.0881622]
[1756065882533,0.4397,4791.3,4789.5,2.08786052]
[1756065882737,0.4397,4791.3,4789.1,2.08804503]
[1756065882939,0.4397,4791.3,4788.9,2.08814963]
[1756065883248,30.51857,4791.2,4788.1,0.04]
[1756065883449,30.4661,4791.1,4788.1,0.04]
[1756065883617,30.0,4791.0,4788.1,0.04]
[1756065883819,0.4661,4791.0,4788.1,0.04]
[1756065884148,30.0,4790.9,4788.1,0.04]
[1756065884314,2.03134363,4790.8,4788.2,2.08846265]
[1756065884509,0.4661,4790.7,4788.1,0.04]
[1756065884951,0.4661,4790.7,4788.1,2.12849953]
[1756065885119,1.605,4790.6,4788.2,2.08843569]
[1756065885325,0.4661,4790.5,4788.1,0.04]
[1756065885539,0.20711,4790.4,4788.5,2.08833121]
[1756065885844,0.20711,4790.4,4788.1,0.04]
[1756065885845,0.4661,4790.3,4788.1,0.04]
[1756065886544,0.4661,4790.3,4788.3,2.08840586]
[1756065886749,0.4661,4790.3,4788.2,2.08846748]
[1756065886950,0.4661,4790.3,4788.1,0.04]
[1756065887112,0.227821,4790.2,4788.1,0.04]
[1756065887660,1.605,4790.6,4788.4,2.0883599]
[1756065887859,1.605,4790.6,4788.4,2.08838025]
[1756065888065,1.605,4790.6,4788.3,4.699]
[1756065888216,1.605,4790.6,4790.5,2.08746477]
[1756065888414,0.4661,4791.5,4790.2,2.08757738]
[1756065888858,0.4661,4791.5,4790.2,2.08758954]
[1756065889354,0.104,4790.3,4789.8,2.087748]
[1756065889528,0.104,4789.6,4789.5,2.0878773]
[1756065890250,0.4661,4789.6,4788.1,3.04]
[1756065890459,0.4661,4789.6,4788.1,0.04]
[1756065890747,0.4661,4789.6,4788.5,2.08833317]
[1756065890949,0.4661,4789.6,4788.1,0.04]
[1756065891158,1.605,4790.3,4790.1,0.004]
[1756065891355,0.6298,4790.2,4790.1,0.004]
[1756065891712,3.0,4790.0,4788.1,0.04]
[1756065892024,3.0,4789.8,4789.7,0.004]
[1756065892224,30.0,4789.7,4787.1,0.044]
[1756065892449,0.59652577,4789.6,4787.1,0.044]
[1756065892673,3.0,4789.4,4787.1,0.044]
[1756065892838,3.0,4789.2,4787.1,0.044]
[1756065893037,1.605,4789.1,4787.1,0.044]
[1756065893264,2.0711,4789.1,4787.1,0.044]
[1756065893461,0.4661,4789.0,4787.1,0.044]
[1756065893662,0.20711,4788.9,4787.1,0.044]
[1756065894069,0.4661,4788.8,4787.1,0.044]
[1756065895170,0.4661,4788.8,4787.2,2.08890374]
[1756065895469,0.4661,4788.8,4787.1,0.044]
[1756065896093,3.0,4788.3,4786.3,0.004]
[1756065896283,3.0,4788.1,4786.3,0.004]
[1756065896477,3.0,4787.9,4786.3,0.004]
[1756065896676,0.18060712,4787.8,4786.3,0.004]
[1756065896978,0.4661,4787.8,4786.3,0.004]
[1756065897278,0.18060712,4787.7,4786.3,0.004]
[1756065897578,0.22527071,4787.6,4786.3,0.004]
[1756065897779,0.69137071,4787.6,4786.3,0.004]
[1756065898650,0.18038902,4787.5,4786.3,0.004]
[1756065898846,0.69137071,4787.6,4786.3,0.004]
[1756065899261,0.4661,4787.5,4786.3,0.004]
[1756065899983,0.53733707,4787.4,4786.3,0.004]
[1756065900388,4.682,4787.8,4786.3,0.004]
[1756065900586,0.1048,4786.4,4786.3,2.09329653]
[1756065900897,0.4661,4787.7,4786.3,0.004]
[1756065901053,0.1048,4786.4,4786.3,0.004]
[1756065901688,0.5709,4786.4,4786.3,0.004]
[1756065902006,31.25649,4786.4,4785.3,0.004]
[1756065902152,3.0,4786.2,4785.3,0.004]
[1756065902352,0.1048,4785.5,4785.3,0.004]
[1756065902549,6.284,4785.4,4784.1,0.04]
[1756065902777,0.1048,4785.2,4784.1,0.04]
[1756065903049,30.0,4784.1,4781.3,0.1048]
[1756065903407,3.0,4783.0,4779.5,2.09223336]
[1756065903560,3.0,4782.0,4779.1,2.1324275]
[1756065903753,0.1048,4781.2,4779.6,2.09220407]
[1756065903995,6.3858,4781.2,4779.1,3.04]
[1756065904195,7.02438,4781.2,4780.1,0.044]
[1756065904397,6.3858,4781.2,4780.1,0.044]
[1756065905414,6.8519,4781.2,4780.1,0.044]
[1756065905692,6.3858,4781.2,4780.1,0.044]
[1756065906358,6.8519,4781.2,4780.1,0.044]
[1756065907303,6.7471,4781.2,4780.1,0.044]
[1756065907458,6.281,4781.2,4780.1,0.044]
[1756065907786,3.0,4782.2,4780.1,0.044]
[1756065907787,4.672,4781.8,4780.1,0.044]
[1756065908000,0.4672,4781.7,4780.1,0.044]
[1756065908156,0.4672,4781.7,4780.6,0.004]
[1756065908355,4.672,4781.8,4780.6,0.004]
[1756065908791,4.672,4781.8,4780.8,0.4582]
[1756065908989,6.277,4782.2,4780.8,0.4582]
[1756065909357,1.607,4783.4,4780.6,0.004]
[1756065909601,4.669,4783.3,4781.2,0.4582]
[1756065909769,4.669,4783.3,4781.4,3.0]
[1756065910092,0.04,4784.4,4781.7,3.0]
[1756065910312,0.04,4784.4,4784.2,2.09020552]
[1756065910452,0.04,4784.4,4782.9,2.09076748]
[1756065910453,6.276,4784.3,4781.6,0.4582]
[1756065910653,4.669,4784.2,4781.6,0.4582]
[1756065910856,4.669,4784.2,4782.6,2.09088714]
[1756065911089,4.669,4784.2,4782.8,5.09082545]
[1756065911258,4.669,4784.2,4782.8,0.55490254]
[1756065911595,4.669,4784.2,4782.7,0.4582]
[1756065911804,4.669,4784.2,4781.6,1.607]
[1756065912118,4.669,4784.2,4782.7,0.4582]